[Event "Mitropa Cup Women 2019"]
[Site "Radenci"]
[Date "2019.05.30"]
[Round "4.15"]
[White "Sankova, Stella"]
[Black "Koubova, Anna Marie"]
[Result "1/2-1/2"]
[ECO "B23"]
[WhiteElo "2013"]
[BlackElo "1975"]
[Annotator "NA"]
[PlyCount "61"]
[EventDate "2019.05.27"]
[EventType "team-tourn"]
[EventCountry "SLO"]
[SourceTitle "playchess.com"]
[Source "ChessBase"]
[SourceQuality "1"]
[WhiteTeam "Slovakia"]
[BlackTeam "Czech Republic"]
[WhiteTeamCountry "SVK"]
[BlackTeamCountry "CZE"]
[TimeControl "40/5400+30:1800+30"]

1. e4 {[%emt 0:00:00]} c5 {[%emt 0:00:00]} 2. Nc3 {[%emt 0:00:00]} d6 {[%emt 0:00:04]} 3. f4 {[%emt 0:00:00]} g6 {[%emt 0:00:13]} 4. Nf3 {[%emt 0:00:00]} Bg7 {[%emt 0:00:09]} 5. Bb5+ {[%emt 0:00:00]} Bd7 {[%emt 0:00:07]} 6. Bc4 {[%emt 0:00:00]} Nc6 {[%emt 0:00:07]} 7. O-O {[%emt 0:00:03]} e6 {[%emt 0:00:07]} 8. f5 {[%emt 0:00:03]} Nf6 {[%emt 0:00:33]} 9. d3 {[%emt 0:01:28]} O-O {[%emt 0:00:13]} 10. Bf4 {[%emt 0:05:52]} d5 {[%emt 0:02:50]} 11. fxe6 {[%emt 0:01:11]} dxc4 {[%emt 0:01:53]} 12. exd7 {[%emt 0:00:07]} Nxd7 {[%emt 0:07:25]} 13. dxc4 {[%emt 0:03:13]} Nde5 {[%emt 0:00:52]} 14. Nxe5 {[%emt 0:01:58]} Nxe5 {[%emt 0:00:34]} 15. Bxe5 {[%emt 0:19:19]} Bxe5 {[%emt 0:00:53]} 16. Qe2 {[%emt 0:01:30]} Bxc3 {[%emt 0:29:45]} 17. bxc3 {[%emt 0:00:06]} Qc7 {[%emt 0:01:00]} 18. Rad1 {[%emt 0:07:02]} Rae8 {[%emt 0:08:23]} 19. Qf3 {[%emt 0:17:45]} Re5 {[%emt 0:02:41]} 20. Rd5 {[%emt 0:04:22]} Rfe8 {[%emt 0:01:59]} 21. Qf2 {[%emt 0:19:52]} b6 {[%emt 0:11:40]} 22. Rfd1 {[%emt 0:02:20]} Rxe4 {[%emt 0:01:20]} 23. Rd7 {[%emt 0:00:15]} Re1+ {[%emt 0:02:55]} 24. Rxe1 {[%emt 0:00:04]} Rxe1+ {[%emt 0:00:05]} 25. Qxe1 {[%emt 0:00:01]} Qxd7 {[%emt 0:00:12]} 26. h3 {[%emt 0:00:48]} Qa4 {[%emt 0:12:29]} 27. Qe4 {[%emt 0:01:15]} Qxa2 {[%emt 0:00:24]} 28. Qe8+ {[%emt 0:00:16]} Kg7 {[%emt 0:00:06]} 29. Qe5+ {[%emt 0:00:05]} Kg8 {[%emt 0:00:10]} 30. Qe8+ {[%emt 0:00:10]} Kg7 {[%emt 0:00:19]} 31. Qe5+ {[%emt 0:00:03]} 1/2-1/2

[Event "Mitropa Cup Women 2019"]
[Site "Radenci"]
[Date "2019.05.30"]
[Round "4.16"]
[White "Pribylova, Sofie"]
[Black "Milcova, Zuzana"]
[Result "1/2-1/2"]
[ECO "B17"]
[WhiteElo "2069"]
[BlackElo "2093"]
[Annotator "NA"]
[PlyCount "84"]
[EventDate "2019.05.27"]
[EventType "team-tourn"]
[EventCountry "SLO"]
[SourceTitle "playchess.com"]
[Source "ChessBase"]
[SourceQuality "1"]
[WhiteTeam "Czech Republic"]
[BlackTeam "Slovakia"]
[WhiteTeamCountry "CZE"]
[BlackTeamCountry "SVK"]
[TimeControl "40/5400+30:1800+30"]

1. e4 {[%emt 0:00:00]} c6 {[%emt 0:00:00]} 2. d4 {[%emt 0:00:00]} d5 {[%emt 0:00:00]} 3. Nd2 {[%emt 0:00:07]} dxe4 {[%emt 0:00:03]} 4. Nxe4 {[%emt 0:00:05]} Nd7 {[%emt 0:00:26]} 5. Ng5 {[%emt 0:00:46]} e6 {[%emt 0:01:24]} 6. N1f3 {[%emt 0:01:14] B17: Caro-Kann: Modern Line (4...Nd7)} h6 {[%emt 0:24:25]} 7. Ne4 {[%emt 0:02:56]} Ngf6 {[%emt 0:01:05]} 8. Bd3 {[%emt 0:02:09]} Nxe4 {[%emt 0:01:46]} 9. Bxe4 {[%emt 0:00:04]} Nf6 {[%emt 0:00:11]} 10. Bd3 {[%emt 0:00:04]} Bd6 {[%emt 0:02:30]} 11. O-O {[%emt 0:01:53]} (11. Bd2 Qc7 12. Qe2 b6 13. O-O-O Bb7 14. Ne5 O-O-O 15. Rhe1 c5 16. dxc5 Bxe5 17. Qxe5 Qxe5 18. Rxe5 Nd7 19. Re3 Nxc5 20. Be2 Ne4 21. Be1 Rxd1+ 22. Bxd1 {1-0 (66) Ivanchuk,V (2726)-Adly,A (2596) Baku 2015}) 11... O-O {[%emt 0:02:22]} 12. b3 {[%emt 0:03:42]} b6 {[%emt 0:14:12]} 13. Bb2 {[%emt 0:01:47]} Bb7 {[%emt 0:00:30]} 14. Qe2 {[%emt 0:01:34]} a5 $146 {[%emt 0:08:15]} ({Predecessor:} 14... c5 15. dxc5 Bxc5 16. Rad1 Qe7 17. c4 Rad8 18. Ne5 Ba8 {0-1 (46) Ulybin,M (2560)-Bartels,H (2335) Heraklio 1993}) 15. a4 {[%emt 0:04:39]} Qc8 {[%emt 0:06:16]} 16. Ne5 {[%emt 0:03:52]} c5 {[%emt 0:10:12]} 17. Ng4 {[%emt 0:04:41]} Nxg4 {[%emt 0:09:20]} 18. Qxg4 {[%emt 0:00:28]} f5 {[%emt 0:01:43]} 19. Qe2 {[%emt 0:02:54]} cxd4 {[%emt 0:05:17]} 20. Bxd4 $11 {[%emt 0:04:42]} e5 {[%emt 0:05:24]} 21. Bxe5 {[%emt 0:09:40]} Bxe5 {[%emt 0:01:04]} 22. Qxe5 {[%emt 0:00:39]} Qc6 {[%emt 0:00:15]} 23. f3 {[%emt 0:01:10]} Rae8 {[%emt 0:01:18]} 24. Qd4 {[%emt 0:04:17]} Qg6 {[%emt 0:01:48]} 25. Qf2 {[%emt 0:03:07]} Re7 {[%emt 0:00:35]} 26. Bb5 {[%emt 0:05:25]} Rd8 {[%emt 0:00:47]} 27. Rad1 {[%emt 0:01:55]} Rxd1 {[%emt 0:00:35]} 28. Rxd1 {[%emt 0:00:04]} Qf6 {[%emt 0:00:40]} 29. Qg3 {[%emt 0:09:51]} f4 {[%emt 0:00:37]} 30. Bc4+ {[%emt 0:04:49]} Kh7 {[%emt 0:00:11]} 31. Bd3+ {[%emt 0:00:42]} g6 {[%emt 0:00:09]} 32. Qf2 {[%emt 0:01:04]} Re3 {[%emt 0:01:08]} 33. Bb5 {[%emt 0:05:28]} Bc6 {[%emt 0:00:11]} 34. Bxc6 {[%emt 0:07:39]} Qxc6 {[%emt 0:00:02]} 35. Qd2 {[%emt 0:00:17]} Qc5 {[%emt 0:00:12]} 36. Kf1 {[%emt 0:04:16]} h5 {[%emt 0:00:34]} 37. Qf2 {[%emt 0:02:09]} Qc3 {[%emt 0:00:16]} 38. Rd7+ {[%emt 0:01:21]} Kh6 {[%emt 0:00:14]} 39. Qd2 {[%emt 0:01:06]} Qa1+ {[%emt 0:01:13]} 40. Qd1 {[%emt 0:00:00]} Qe5 {[%emt 0:00:00]} 41. Kf2 {[%emt 0:04:46]} Qc5 {[%emt 0:13:37]} 42. Kf1 {[%emt 0:00:14]} Qb4 {[%emt 0:08:45]} 1/2-1/2

[Event "Mitropa Cup Women 2019"]
[Site "Radenci"]
[Date "2019.05.31"]
[Round "5.1"]
[White "Medic, Mirjana"]
[Black "Motycakova, Monika"]
[Result "1/2-1/2"]
[ECO "D46"]
[WhiteElo "2253"]
[BlackElo "2150"]
[Annotator "ChessBase"]
[PlyCount "84"]
[EventDate "2019.05.27"]
[EventType "team-tourn"]
[EventCountry "SLO"]
[SourceTitle "playchess.com"]
[Source "ChessBase"]
[SourceQuality "1"]
[WhiteTeam "Croatia"]
[BlackTeam "Slovakia"]
[WhiteTeamCountry "CRO"]
[BlackTeamCountry "SVK"]
[TimeControl "40/5400+30:1800+30"]

1. d4 {[%emt 0:00:34]} d5 {[%emt 0:00:00]} 2. c4 {[%emt 0:00:13]} c6 {[%emt 0:00:00]} 3. Nf3 {[%emt 0:00:25]} Nf6 {[%emt 0:00:00]} 4. Nc3 {[%emt 0:00:15]} e6 {[%emt 0:00:00]} 5. e3 {[%emt 0:00:07]} Nbd7 {[%emt 0:00:07]} 6. Qc2 {[%emt 0:00:35]} Bd6 {[%emt 0:00:23]} 7. Bd3 {[%emt 0:00:49]} O-O {[%emt 0:01:11]} 8. O-O {[%emt 0:00:05]} dxc4 {[%emt 0:09:48]} 9. Bxc4 {[%emt 0:00:16]} b5 {[%emt 0:00:05]} 10. Be2 {[%emt 0:00:12]} Bb7 {[%emt 0:02:38]} 11. Rd1 {[%emt 0:01:27]} Qe7 {[%emt 0:04:26]} 12. e4 {[%emt 0:19:24]} e5 {[%emt 0:03:24]} 13. dxe5 {[%emt 0:18:05]} Nxe5 {[%emt 0:00:27]} 14. g3 {[%emt 0:01:06]} Nxf3+ {[%emt 0:19:38]} 15. Bxf3 {[%emt 0:00:14]} Rfe8 {[%emt 0:04:18]} 16. Be3 {[%emt 0:07:28]} a6 {[%emt 0:13:46]} 17. Ne2 {[%emt 0:04:18]} Rad8 {[%emt 0:10:13]} 18. Nd4 {[%emt 0:01:32]} Qc7 {[%emt 0:01:33]} 19. Nf5 {[%emt 0:02:49]} Be5 {[%emt 0:02:58]} 20. Bc5 {[%emt 0:01:14]} g6 {[%emt 0:02:30]} 21. Nh6+ {[%emt 0:02:12]} Kg7 {[%emt 0:00:08]} 22. Ng4 {[%emt 0:00:02]} Nxg4 {[%emt 0:03:27]} 23. Bxg4 {[%emt 0:00:02]} Bc8 {[%emt 0:01:45]} 24. Bxc8 {[%emt 0:02:45]} Qxc8 {[%emt 0:00:50]} 25. Rac1 {[%emt 0:12:23]} Rxd1+ {[%emt 0:05:53]} 26. Rxd1 {[%emt 0:00:02]} Rd8 {[%emt 0:00:10]} 27. Rc1 {[%emt 0:00:28]} Bd4 {[%emt 0:04:37]} 28. Kg2 {[%emt 0:05:12]} Bxc5 {[%emt 0:03:21]} 29. Qxc5 {[%emt 0:00:04]} Qe6 {[%emt 0:00:29]} 30. Qxc6 {[%emt 0:01:32]} Qxa2 {[%emt 0:00:25]} 31. Qc3+ {[%emt 0:00:24]} Kg8 {[%emt 0:00:39]} 32. Qf6 {[%emt 0:01:08]} Re8 {[%emt 0:00:49]} 33. Rc6 {[%emt 0:00:46]} a5 {[%emt 0:02:12]} 34. Qd4 {[%emt 0:03:41]} Qb1 {[%emt 0:00:42]} 35. e5 {[%emt 0:02:00]} b4 {[%emt 0:03:19]} 36. e6 {[%emt 0:01:10]} Qf5 {[%emt 0:00:22]} 37. exf7+ {[%emt 0:03:00]} Qxf7 {[%emt 0:00:05]} 38. Rd6 {[%emt 0:00:29]} Qb7+ {[%emt 0:01:12]} 39. Kh3 {[%emt 0:02:01]} Qe4 {[%emt 0:00:22]} 40. Qd2 {[%emt 0:00:00]} Qf5+ {[%emt 0:00:00]} 41. Kg2 {[%emt 0:08:44]} Qe4+ {[%emt 0:07:08]} 42. Kh3 {[%emt 0:00:15]} Qf5+ {[%emt 0:06:28]} 1/2-1/2

[Event "Mitropa Cup Women 2019"]
[Site "Radenci"]
[Date "2019.05.31"]
[Round "5.2"]
[White "Ferkova, Dominika"]
[Black "Cvitan, Ena"]
[Result "1-0"]
[ECO "E55"]
[WhiteElo "2037"]
[BlackElo "2132"]
[Annotator "ChessBase"]
[PlyCount "95"]
[EventDate "2019.05.27"]
[EventType "team-tourn"]
[EventCountry "SLO"]
[SourceTitle "playchess.com"]
[Source "ChessBase"]
[SourceQuality "1"]
[WhiteTeam "Slovakia"]
[BlackTeam "Croatia"]
[WhiteTeamCountry "SVK"]
[BlackTeamCountry "CRO"]
[TimeControl "40/5400+30:1800+30"]

1. d4 {[%emt 0:00:00]} Nf6 {[%emt 0:00:08]} 2. c4 {[%emt 0:00:00]} e6 {[%emt 0:00:04]} 3. Nc3 {[%emt 0:00:00]} Bb4 {[%emt 0:00:50]} 4. e3 {[%emt 0:00:00]} O-O {[%emt 0:00:29]} 5. Bd3 {[%emt 0:00:20]} d5 {[%emt 0:00:16]} 6. Nf3 {[%emt 0:00:29]} dxc4 {[%emt 0:00:08]} 7. Bxc4 {[%emt 0:00:11]} b6 {[%emt 0:00:07]} 8. O-O {[%emt 0:00:17]} Bb7 {[%emt 0:00:09]} 9. a3 {[%emt 0:05:30]} Bxc3 {[%emt 0:00:26]} 10. bxc3 {[%emt 0:00:08]} Nbd7 {[%emt 0:00:13]} 11. a4 {[%emt 0:13:30]} c5 {[%emt 0:06:24]} 12. Ba3 {[%emt 0:07:58]} Qc7 {[%emt 0:04:27]} 13. h3 {[%emt 0:11:24]} Rfe8 {[%emt 0:08:28]} 14. Rc1 {[%emt 0:04:25]} Rad8 {[%emt 0:03:58]} 15. Qe2 {[%emt 0:05:05]} Ne4 {[%emt 0:10:36]} 16. Rfd1 {[%emt 0:07:45]} e5 {[%emt 0:13:36]} 17. Bb5 {[%emt 0:08:07]} Bc6 {[%emt 0:07:16]} 18. Bxc6 {[%emt 0:22:29]} Qxc6 {[%emt 0:00:02]} 19. Qc2 {[%emt 0:00:47]} Nd6 {[%emt 0:05:46]} 20. d5 {[%emt 0:01:20]} Qc8 {[%emt 0:07:59]} 21. e4 {[%emt 0:01:00]} Nf6 {[%emt 0:01:29]} 22. Nd2 {[%emt 0:00:55]} Nh5 {[%emt 0:01:33]} 23. c4 {[%emt 0:04:31]} Nf4 {[%emt 0:01:45]} 24. Nf1 {[%emt 0:00:45]} Qd7 {[%emt 0:04:16]} 25. Ng3 {[%emt 0:04:24]} Qe7 {[%emt 0:01:58]} 26. Kh2 {[%emt 0:01:06]} Qg5 {[%emt 0:01:38]} 27. Rg1 {[%emt 0:00:18]} h5 {[%emt 0:04:05]} 28. Rce1 {[%emt 0:00:40]} h4 {[%emt 0:06:11]} 29. Nf1 {[%emt 0:00:24]} f5 {[%emt 0:01:37]} 30. exf5 {[%emt 0:00:28]} Nxf5 {[%emt 0:00:42]} 31. Bc1 {[%emt 0:00:07]} Nd4 {[%emt 0:00:35]} 32. Qe4 {[%emt 0:00:16]} Qh5 {[%emt 0:01:36]} 33. Nd2 {[%emt 0:01:14]} g5 {[%emt 0:04:37]} 34. Nf3 {[%emt 0:00:25]} Nxf3+ {[%emt 0:03:02]} 35. Qxf3 {[%emt 0:00:02]} Qxf3 {[%emt 0:00:30]} 36. gxf3 {[%emt 0:00:01]} Nd3 {[%emt 0:00:28]} 37. Rxg5+ {[%emt 0:00:30]} Kf7 {[%emt 0:00:10]} 38. Rd1 {[%emt 0:00:26]} Nxc1 {[%emt 0:00:53]} 39. Rxc1 {[%emt 0:00:07]} e4 {[%emt 0:00:29]} 40. Rcg1 {[%emt 0:00:00]} Kf6 {[%emt 0:00:00]} 41. R5g4 {[%emt 0:20:48]} exf3 {[%emt 0:02:15]} 42. Rxh4 {[%emt 0:02:39]} Re2 {[%emt 0:02:50]} 43. Rf4+ {[%emt 0:00:25]} Ke5 {[%emt 0:00:01]} 44. Rxf3 {[%emt 0:00:11]} Ra2 {[%emt 0:00:47]} 45. Rg5+ {[%emt 0:01:48]} Ke4 {[%emt 0:00:21]} 46. Kg3 {[%emt 0:01:01]} Rxa4 {[%emt 0:00:21]} 47. Re3+ {[%emt 0:01:00]} Kd4 {[%emt 0:00:34]} 48. Rg4# {[%emt 0:00:06]} 1-0

[Event "Mitropa Cup Women 2019"]
[Site "Radenci"]
[Date "2019.05.31"]
[Round "5.3"]
[White "Blazeka, Mihaela"]
[Black "Sankova, Stella"]
[Result "1-0"]
[ECO "B20"]
[WhiteElo "2118"]
[BlackElo "2013"]
[Annotator "ChessBase"]
[PlyCount "67"]
[EventDate "2019.05.27"]
[EventType "team-tourn"]
[EventCountry "SLO"]
[SourceTitle "playchess.com"]
[Source "ChessBase"]
[SourceQuality "1"]
[WhiteTeam "Croatia"]
[BlackTeam "Slovakia"]
[WhiteTeamCountry "CRO"]
[BlackTeamCountry "SVK"]
[TimeControl "40/5400+30:1800+30"]

1. e4 {[%emt 0:00:00]} c5 {[%emt 0:00:00]} 2. Ne2 {[%emt 0:00:29]} d6 {[%emt 0:00:06]} 3. g3 {[%emt 0:00:25]} Nc6 {[%emt 0:00:09]} 4. Bg2 {[%emt 0:00:36]} Nf6 {[%emt 0:05:07]} 5. c3 {[%emt 0:00:58]} d5 {[%emt 0:02:12]} 6. exd5 {[%emt 0:05:42]} Nxd5 {[%emt 0:00:07]} 7. d4 {[%emt 0:01:20]} e6 {[%emt 0:00:59]} 8. O-O {[%emt 0:01:42]} Be7 {[%emt 0:01:26]} 9. dxc5 {[%emt 0:24:43]} Bxc5 {[%emt 0:04:20]} 10. Nd2 {[%emt 0:13:54]} O-O {[%emt 0:03:57]} 11. Ne4 {[%emt 0:04:36]} Be7 {[%emt 0:02:31]} 12. c4 {[%emt 0:03:43]} Ndb4 {[%emt 0:09:25]} 13. Bd2 {[%emt 0:14:42]} e5 {[%emt 0:18:54]} 14. a3 {[%emt 0:05:43]} Nd3 {[%emt 0:01:25]} 15. Qc2 {[%emt 0:00:29]} Bg4 {[%emt 0:06:47]} 16. Be3 {[%emt 0:03:10]} f5 {[%emt 0:05:53]} 17. Rad1 {[%emt 0:01:30]} fxe4 {[%emt 0:01:47]} 18. Bxe4 {[%emt 0:00:10]} Ndb4 {[%emt 0:07:08]} 19. axb4 {[%emt 0:04:43]} Qe8 {[%emt 0:04:07]} 20. Bxh7+ {[%emt 0:03:03]} Kh8 {[%emt 0:00:03]} 21. Rd2 {[%emt 0:02:26]} Nxb4 {[%emt 0:02:42]} 22. Qg6 {[%emt 0:01:36]} Qc8 {[%emt 0:02:23]} 23. Bh6 {[%emt 0:00:41]} Bf6 {[%emt 0:08:14]} 24. f3 {[%emt 0:00:40]} Qc5+ {[%emt 0:06:28]} 25. Kg2 {[%emt 0:00:31]} gxh6 {[%emt 0:01:48]} 26. fxg4 {[%emt 0:02:35]} Qe3 {[%emt 0:03:09]} 27. Rd6 {[%emt 0:01:22]} Qxe2+ {[%emt 0:00:49]} 28. Rf2 {[%emt 0:00:03]} Qxc4 {[%emt 0:00:32]} 29. Rdxf6 {[%emt 0:00:15]} Rxf6 {[%emt 0:00:59]} 30. Rxf6 {[%emt 0:00:17]} Qd5+ {[%emt 0:00:57]} 31. Kh3 {[%emt 0:00:12]} Qd2 {[%emt 0:00:30]} 32. Rf5 {[%emt 0:02:22]} Rd8 {[%emt 0:00:33]} 33. Rh5 {[%emt 0:01:20]} Rd6 {[%emt 0:00:23]} 34. Qg8# {[%emt 0:00:08]} 1-0

[Event "Mitropa Cup Women 2019"]
[Site "Radenci"]
[Date "2019.05.31"]
[Round "5.4"]
[White "Milcova, Zuzana"]
[Black "Spiranec, Noemi"]
[Result "1/2-1/2"]
[ECO "C45"]
[WhiteElo "2093"]
[BlackElo "2009"]
[Annotator "NA"]
[PlyCount "99"]
[EventDate "2019.05.27"]
[EventType "team-tourn"]
[EventCountry "SLO"]
[SourceTitle "playchess.com"]
[Source "ChessBase"]
[SourceQuality "1"]
[WhiteTeam "Slovakia"]
[BlackTeam "Croatia"]
[WhiteTeamCountry "SVK"]
[BlackTeamCountry "CRO"]
[TimeControl "40/5400+30:1800+30"]

1. e4 {[%emt 0:00:07]} e5 {[%emt 0:00:00]} 2. Nf3 {[%emt 0:00:29]} Nc6 {[%emt 0:00:00]} 3. d4 {[%emt 0:00:14]} exd4 {[%emt 0:00:00]} 4. Nxd4 {[%emt 0:00:04]} Nf6 {[%emt 0:00:00]} 5. Nxc6 {[%emt 0:00:55]} bxc6 $11 {[%emt 0:00:07]} 6. Nd2 {[%emt 0:00:55]} d5 {[%emt 0:00:07]} 7. exd5 {[%emt 0:00:25]} cxd5 {[%emt 0:00:07]} 8. Bb5+ {[%emt 0:01:11]} Bd7 {[%emt 0:00:07]} 9. Qe2+ {[%emt 0:00:44]} Be7 {[%emt 0:00:27]} 10. O-O {[%emt 0:02:48]} O-O {[%emt 0:00:09]} 11. Bxd7 {[%emt 0:08:10]} Qxd7 {[%emt 0:00:09]} 12. b3 {[%emt 0:01:20]} Rfe8 {[%emt 0:08:28]} 13. Qf3 {[%emt 0:16:27]} Ne4 {[%emt 0:09:22]} 14. Nxe4 {[%emt 0:09:38]} dxe4 {[%emt 0:00:07]} 15. Qe2 {[%emt 0:00:46]} Bf6 {[%emt 0:01:26]} 16. Rb1 {[%emt 0:00:36]} Rad8 {[%emt 0:11:27]} 17. Be3 {[%emt 0:06:22]} Be5 {[%emt 0:06:06]} 18. Rbd1 {[%emt 0:12:43]} Qe7 {[%emt 0:00:30]} 19. Rxd8 {[%emt 0:07:34]} Rxd8 {[%emt 0:00:10]} 20. Rd1 {[%emt 0:00:43]} Re8 {[%emt 0:08:28]} 21. Qg4 {[%emt 0:08:13]} Bd6 {[%emt 0:03:49]} 22. Rd5 {[%emt 0:04:31]} c6 {[%emt 0:06:35]} 23. Rd1 {[%emt 0:04:23]} g6 {[%emt 0:02:34]} 24. g3 {[%emt 0:00:35]} f5 {[%emt 0:00:34]} 25. Qe2 {[%emt 0:01:27]} Qe6 {[%emt 0:10:06]} 26. Qc4 {[%emt 0:04:32]} Qxc4 {[%emt 0:00:07]} 27. bxc4 {[%emt 0:00:03]} Bb8 {[%emt 0:00:25]} 28. Rd7 {[%emt 0:00:48]} a6 {[%emt 0:00:06]} 29. Bd4 {[%emt 0:02:02]} Be5 {[%emt 0:01:05]} 30. c3 {[%emt 0:00:36]} g5 {[%emt 0:05:32]} 31. Ra7 {[%emt 0:01:47]} c5 {[%emt 0:00:40]} 32. Bxe5 {[%emt 0:00:42]} Rxe5 {[%emt 0:00:01]} 33. Rxa6 {[%emt 0:00:21]} f4 {[%emt 0:00:18]} 34. Rd6 {[%emt 0:02:25]} e3 {[%emt 0:01:03]} 35. fxe3 {[%emt 0:00:04]} fxg3 {[%emt 0:02:25]} 36. hxg3 {[%emt 0:01:12]} Rxe3 {[%emt 0:00:01]} 37. Rd5 {[%emt 0:00:49]} Rxg3+ {[%emt 0:00:25]} 38. Kf2 {[%emt 0:00:26]} Rxc3 {[%emt 0:00:29]} 39. Rxg5+ {[%emt 0:00:09]} Kf7 {[%emt 0:00:06]} 40. Rxc5 {[%emt 0:00:00]} Rc2+ {[%emt 0:00:00]} 41. Ke3 {[%emt 0:09:46]} Rxa2 {[%emt 0:00:09]} 42. Rb5 {[%emt 0:02:46]} Ke6 {[%emt 0:05:11]} 43. Rh5 {[%emt 0:06:33]} Kd6 {[%emt 0:02:32]} 44. Kd4 {[%emt 0:01:48]} Rd2+ {[%emt 0:00:14]} 45. Kc3 {[%emt 0:00:08]} Rg2 {[%emt 0:00:18]} 46. Rxh7 {[%emt 0:00:36]} Kc5 {[%emt 0:00:31]} 47. Rh5+ {[%emt 0:00:45]} Kc6 {[%emt 0:00:21]} 48. Rf5 {[%emt 0:00:28]} Rg1 {[%emt 0:00:40]} 49. Kb4 {[%emt 0:01:45]} Rb1+ {[%emt 0:00:13]} 50. Kc3 {[%emt 0:00:05]} 1/2-1/2

[Event "Mitropa Cup Women 2019"]
[Site "Radenci"]
[Date "2019.05.31"]
[Round "5.5"]
[White "Navrotescu, Andreea-Cristiana"]
[Black "Havanecz, Bianka"]
[Result "1/2-1/2"]
[ECO "A07"]
[WhiteElo "2233"]
[BlackElo "2279"]
[Annotator "ChessBase"]
[PlyCount "62"]
[EventDate "2019.05.27"]
[EventType "team-tourn"]
[EventCountry "SLO"]
[SourceTitle "playchess.com"]
[Source "ChessBase"]
[SourceQuality "1"]
[WhiteTeam "France"]
[BlackTeam "Hungary"]
[WhiteTeamCountry "FRA"]
[BlackTeamCountry "HUN"]
[TimeControl "40/5400+30:1800+30"]

1. Nf3 {[%emt 0:00:00]} Nf6 {[%emt 0:00:14]} 2. b3 {[%emt 0:00:00]} d5 {[%emt 0:00:30]} 3. Bb2 {[%emt 0:00:00]} Bf5 {[%emt 0:00:32]} 4. g3 {[%emt 0:00:17]} e6 {[%emt 0:00:31]} 5. Bg2 {[%emt 0:00:18]} h6 {[%emt 0:00:12]} 6. O-O {[%emt 0:00:52]} Be7 {[%emt 0:00:05]} 7. d3 {[%emt 0:00:17]} O-O {[%emt 0:00:17]} 8. Nbd2 {[%emt 0:00:21]} Bh7 {[%emt 0:01:16]} 9. Re1 {[%emt 0:03:22]} c5 {[%emt 0:00:33]} 10. e4 {[%emt 0:00:56]} Nc6 {[%emt 0:03:00]} 11. exd5 {[%emt 0:03:07]} Nxd5 {[%emt 0:00:17]} 12. Nc4 {[%emt 0:02:33]} Rc8 {[%emt 0:01:16]} 13. Nce5 {[%emt 0:08:24]} Nxe5 {[%emt 0:05:51]} 14. Nxe5 {[%emt 0:00:22]} b6 {[%emt 0:02:51]} 15. f4 {[%emt 0:05:43]} Bf6 {[%emt 0:09:33]} 16. a3 {[%emt 0:01:51]} Qc7 {[%emt 0:00:43]} 17. Qf3 {[%emt 0:03:24]} b5 {[%emt 0:03:27]} 18. c4 {[%emt 0:11:52]} bxc4 {[%emt 0:00:06]} 19. dxc4 {[%emt 0:00:24]} Ne7 {[%emt 0:01:40]} 20. g4 {[%emt 0:05:07]} Rcd8 {[%emt 0:18:42]} 21. Qf2 {[%emt 0:09:53]} Rb8 {[%emt 0:04:45]} 22. Re3 {[%emt 0:02:57]} Ng6 {[%emt 0:01:04]} 23. Nxg6 {[%emt 0:06:13]} Bxb2 {[%emt 0:00:08]} 24. Qxb2 {[%emt 0:00:05]} Bxg6 {[%emt 0:00:08]} 25. Rf1 {[%emt 0:00:49]} Qd7 {[%emt 0:03:40]} 26. Qe5 {[%emt 0:07:21]} Bc2 {[%emt 0:00:07]} 27. Rc3 {[%emt 0:12:04]} Qd2 {[%emt 0:04:02]} 28. Rf2 {[%emt 0:01:44]} Qd1+ {[%emt 0:00:05]} 29. Rf1 {[%emt 0:00:12]} Qd2 {[%emt 0:00:05]} 30. Rf2 {[%emt 0:01:01]} Qd1+ {[%emt 0:00:05]} 31. Rf1 {[%emt 0:01:13]} Qd2 {[%emt 0:00:09]} 1/2-1/2

[Event "Mitropa Cup Women 2019"]
[Site "Radenci"]
[Date "2019.05.31"]
[Round "5.6"]
[White "Juhasz, Barbara"]
[Black "Afraoui, Anaelle"]
[Result "1/2-1/2"]
[ECO "B66"]
[WhiteElo "2207"]
[BlackElo "2068"]
[Annotator "ChessBase"]
[PlyCount "88"]
[EventDate "2019.05.27"]
[EventType "team-tourn"]
[EventCountry "SLO"]
[SourceTitle "playchess.com"]
[Source "ChessBase"]
[SourceQuality "1"]
[WhiteTeam "Hungary"]
[BlackTeam "France"]
[WhiteTeamCountry "HUN"]
[BlackTeamCountry "FRA"]
[TimeControl "40/5400+30:1800+30"]

1. e4 {[%emt 0:00:00]} c5 {[%emt 0:00:00]} 2. Nf3 {[%emt 0:00:00]} Nc6 {[%emt 0:00:06]} 3. Nc3 {[%emt 0:00:11]} d6 {[%emt 0:02:06]} 4. d4 {[%emt 0:01:51]} cxd4 {[%emt 0:00:24]} 5. Nxd4 {[%emt 0:00:05]} Nf6 {[%emt 0:01:24]} 6. Bg5 {[%emt 0:00:10]} e6 {[%emt 0:00:09]} 7. Qd2 {[%emt 0:12:26]} a6 {[%emt 0:00:48]} 8. f3 {[%emt 0:01:37]} h6 {[%emt 0:06:13]} 9. Be3 {[%emt 0:02:46]} Nxd4 {[%emt 0:04:38]} 10. Bxd4 {[%emt 0:08:25]} e5 {[%emt 0:03:06]} 11. Be3 {[%emt 0:03:44]} Be6 {[%emt 0:00:32]} 12. Be2 {[%emt 0:20:50]} Be7 {[%emt 0:06:12]} 13. O-O-O {[%emt 0:07:55]} b5 {[%emt 0:03:58]} 14. Kb1 {[%emt 0:01:22]} Rb8 {[%emt 0:22:06]} 15. Nd5 {[%emt 0:15:26]} Nxd5 {[%emt 0:09:49]} 16. exd5 {[%emt 0:00:05]} Bd7 {[%emt 0:00:23]} 17. f4 {[%emt 0:01:46]} O-O {[%emt 0:03:20]} 18. fxe5 {[%emt 0:11:18]} dxe5 {[%emt 0:00:12]} 19. g4 {[%emt 0:00:03]} Bg5 {[%emt 0:06:17]} 20. h4 {[%emt 0:00:08]} Bxh4 {[%emt 0:07:39]} 21. Bxh6 {[%emt 0:00:04]} gxh6 {[%emt 0:01:01]} 22. Qxh6 {[%emt 0:02:25]} Rb6 {[%emt 0:01:58]} 23. Qh5 {[%emt 0:02:34]} Kg7 {[%emt 0:03:22]} 24. Rxh4 {[%emt 0:01:10]} Rh8 {[%emt 0:02:10]} 25. Qxe5+ {[%emt 0:00:04]} Qf6 {[%emt 0:00:07]} 26. Qxf6+ {[%emt 0:00:41]} Rxf6 {[%emt 0:00:04]} 27. Rxh8 {[%emt 0:00:16]} Kxh8 {[%emt 0:00:04]} 28. Kc1 {[%emt 0:02:46]} Rf2 {[%emt 0:02:13]} 29. Kd2 {[%emt 0:02:32]} Bxg4 {[%emt 0:01:31]} 30. Rh1+ {[%emt 0:00:04]} Kg7 {[%emt 0:00:57]} 31. Rg1 {[%emt 0:00:03]} f5 {[%emt 0:02:15]} 32. Kd3 {[%emt 0:02:13]} Rxe2 {[%emt 0:04:43]} 33. Rxg4+ {[%emt 0:00:05]} fxg4 {[%emt 0:00:03]} 34. Kxe2 {[%emt 0:00:03]} Kf6 {[%emt 0:00:06]} 35. Kf2 {[%emt 0:01:07]} Ke5 {[%emt 0:00:08]} 36. d6 {[%emt 0:00:45]} Kxd6 {[%emt 0:00:03]} 37. Kg3 {[%emt 0:00:02]} Ke5 {[%emt 0:00:28]} 38. Kxg4 {[%emt 0:00:06]} Ke4 {[%emt 0:00:05]} 39. Kg5 {[%emt 0:00:34]} Ke3 {[%emt 0:01:57]} 40. Kf5 {[%emt 0:00:00]} Kd2 {[%emt 0:00:00]} 41. c4 {[%emt 0:00:39]} bxc4 {[%emt 0:00:51]} 42. Ke4 {[%emt 0:00:13]} Kc2 {[%emt 0:03:17]} 43. Kd4 {[%emt 0:00:49]} Kxb2 {[%emt 0:00:23]} 44. Kxc4 {[%emt 0:00:04]} Kxa2 {[%emt 0:00:07]} 1/2-1/2